bitfinex-derivatives/quotes_ETHF0:USTF0_20250803
["timestamp","ask_amount","ask_price","bid_price","bid_amount"]
[1754211853139,13.75921147,3460.0,3459.9,21.27477746]
[1754211856143,13.75921147,3460.0,3459.9,22.08587746]
[1754211856346,10.55931147,3460.0,3459.9,22.83037746]
[1754211857042,11.24331147,3460.0,3459.9,22.83037746]
[1754211857252,1.3074,3460.6,3460.5,0.929]
[1754211857448,8.98975097,3460.6,3460.5,2.012]
[1754211857643,13.75921147,3460.6,3460.5,2.012]
[1754211859246,8.98975097,3460.6,3460.5,2.012]
[1754211859442,13.75921147,3460.6,3460.5,2.012]
[1754211859841,13.75921147,3460.6,3460.5,21.776]
[1754211861252,13.75921147,3460.6,3460.5,20.2343]
[1754211862438,13.75921147,3460.6,3460.5,19.764]
[1754211863844,11.86671147,3460.6,3460.3,20.34004]
[1754211864043,11.86671147,3460.6,3460.4,0.4703]
[1754211864044,8.98975097,3460.5,3460.4,0.4703]
[1754211864245,8.98975097,3460.5,3460.4,1.2675]
[1754211864845,8.98975097,3460.5,3460.4,2.012]
[1754211865155,8.98975097,3460.5,3460.4,21.773]
[1754211866048,5.78985097,3460.5,3460.4,21.773]
[1754211866948,6.47385097,3460.5,3460.4,21.773]
[1754211867147,7.15645097,3460.5,3460.4,21.773]
[1754211867650,8.98975097,3460.5,3460.4,1.2675]
[1754211867949,8.98975097,3460.5,3460.4,21.0285]
[1754211868149,8.98975097,3460.5,3460.4,21.773]
[1754211869751,8.98975097,3460.5,3460.4,21.0285]
[1754211869954,8.98975097,3460.5,3460.4,20.69]
[1754211870244,1.2085,3460.4,3460.1,2.5932776]
[1754211870449,13.75921147,3460.2,3460.1,2.5932776]
[1754211870646,13.75921147,3460.2,3459.9,23.39375506]
[1754211870949,3.2078,3460.3,3459.9,20.80047746]
[1754211870950,7.9693605,3460.0,3459.9,20.80047746]
[1754211871351,13.75921147,3460.0,3459.9,20.80047746]
[1754211871649,13.75921147,3460.0,3459.9,22.75577746]
[1754211875346,13.75921147,3460.0,3459.9,20.80047746]
[1754211876441,13.75921147,3460.0,3459.9,1.04047746]
[1754211877741,13.75921147,3460.0,3459.6,19.759]
[1754211877742,1.3002,3459.7,3459.6,19.759]
[1754211877947,9.05485097,3459.7,3459.6,19.759]
[1754211878150,13.82431147,3459.7,3459.6,19.759]
[1754211879051,13.82431147,3459.7,3459.6,20.7064]
[1754211879252,13.82431147,3459.7,3459.6,21.3862]
[1754211880150,13.82431147,3459.7,3459.6,1.6272]
[1754211880455,13.82431147,3459.7,3459.6,21.3872]
[1754211883659,13.82431147,3459.7,3459.6,21.8649]
[1754211884048,13.82431147,3459.7,3459.6,21.5385]
[1754211884756,13.82431147,3459.7,3459.6,21.8649]
[1754211884961,13.82431147,3459.7,3459.6,2.1049]
[1754211885259,13.82431147,3459.7,3459.6,21.8649]
[1754211885460,13.82431147,3459.7,3459.6,21.0608]
[1754211885658,13.82431147,3459.7,3459.6,20.565]
[1754211886360,13.82431147,3459.7,3459.4,0.4958]
[1754211886561,3.265,3459.7,3459.6,19.76]
[1754211887161,13.82431147,3459.7,3459.6,19.76]
[1754211887853,13.82431147,3459.7,3459.6,20.7074]
[1754211890362,13.82431147,3459.7,3459.6,0.9474]
[1754211890659,8.0344605,3459.7,3459.6,0.9474]
[1754211890865,13.82431147,3459.7,3459.6,0.9474]
[1754211891067,2.5603,3459.6,3459.5,19.76]
[1754211891263,13.82431147,3459.6,3459.5,19.76]
[1754211891566,13.82431147,3459.6,3459.5,20.2558]
[1754211891768,13.82431147,3459.6,3459.5,20.7074]
[1754211892371,13.82431147,3459.6,3459.5,21.0338]
[1754211892578,13.82431147,3459.6,3459.5,21.3872]
[1754211893676,13.82431147,3459.6,3459.5,21.8649]
[1754211894877,11.85951147,3459.6,3459.4,0.57818]
[1754211895082,6.0696605,3459.6,3459.5,20.2548]
[1754211895277,6.0696605,3459.6,3459.5,20.7064]
[1754211895479,11.85951147,3459.6,3459.5,0.9474]
[1754211895683,13.82431147,3459.6,3459.5,0.9474]
[1754211898677,13.82431147,3459.6,3459.5,1.6272]
[1754211899078,13.82431147,3459.6,3459.5,2.20538]
[1754211899273,1.9648,3459.5,3459.2,0.4958]
[1754211899480,8.0344605,3459.3,3459.2,1.52563]
[1754211899783,8.0344605,3459.3,3459.2,22.44113]
[1754211899985,9.05485097,3459.3,3459.2,22.44113]
[1754211900185,9.05485097,3459.3,3459.2,23.12893]
[1754211902983,9.05485097,3459.3,3459.2,1.87903]
[1754211903189,9.05485097,3459.3,3458.5,3.60559958]
[1754211903190,6.0398605,3459.0,3458.5,3.60559958]
[1754211903385,3.2078,3458.9,3458.8,2.7705]
[1754211903682,6.1938605,3459.1,3459.0,1.2651]
[1754211903988,6.1938605,3459.1,3459.0,2.7705]
[1754211904386,4.6322,3459.3,3459.0,2.7705]
[1754211904583,4.6322,3459.3,3459.2,1.84333]
[1754211904783,4.6322,3459.3,3459.2,2.7705]
[1754211905079,6.4455,3459.3,3459.2,2.7705]
[1754211905280,1.2704,3459.0,3458.9,20.2453]
[1754211905483,1.2704,3458.7,3458.6,0.947]
[1754211905682,11.2149605,3458.7,3458.6,20.705]
[1754211905890,11.2149605,3458.7,3458.6,21.8254]
[1754211906085,10.6720605,3458.7,3458.6,22.5285]
[1754211908386,3.2078,3458.7,3458.6,22.5285]
[1754211908587,4.6322,3459.2,3459.1,2.7705]
[1754211908885,5.5476,3459.2,3459.1,2.7705]
[1754211909088,6.4455,3459.2,3459.1,2.7705]
[1754211910291,4.6322,3459.2,3459.1,2.7705]
[1754211911690,3.2078,3459.2,3459.1,2.7705]
[1754211912392,1.4244,3459.6,3459.0,20.33725]
[1754211912393,3.2078,3459.6,3459.5,2.7705]
[1754211912587,3.2078,3459.6,3459.5,22.5285]
[1754211914397,3.2078,3460.0,3459.9,3.34861]
[1754211914691,3.2078,3460.0,3459.9,23.10561]
[1754211915195,4.6322,3460.0,3459.9,23.10561]
[1754211915597,6.4455,3460.0,3459.9,23.10561]
[1754211916593,5.5476,3460.0,3459.9,23.10561]
[1754211917498,4.6322,3460.0,3459.9,23.10561]
[1754211918601,3.9432,3460.0,3459.9,23.10561]
[1754211919890,3.2078,3460.0,3459.9,23.10561]
[1754211920495,1.2319,3460.2,3459.9,21.60021]
[1754211920803,2.5023,3460.2,3460.1,3.34857]
[1754211921096,1.9594,3460.2,3460.1,23.10257]
[1754211921303,2.2496,3460.2,3460.1,23.10257]
[1754211921697,4.033,3460.5,3460.4,1.84312]
[1754211921897,4.4782,3460.5,3460.4,22.39942]
[1754211922194,9.2476605,3460.5,3460.4,23.10252]
[1754211922397,11.2149605,3460.5,3460.4,23.10252]
[1754211924403,11.2149605,3460.5,3460.4,21.8214]
[1754211924603,11.2149605,3460.5,3460.4,21.5064]
[1754211926400,11.2149605,3460.5,3460.4,21.8214]
[1754211926805,6.4455,3460.5,3460.4,22.5245]
[1754211929703,6.4455,3460.5,3460.4,21.8214]
[1754211931500,11.2149605,3460.5,3460.4,21.8214]
[1754211933709,11.2149605,3460.5,3460.4,22.5449]
[1754211934600,3.2078,3460.5,3460.4,21.8214]
[1754211934801,1.4776,3460.8,3460.5,0.57801]
[1754211935000,6.7711605,3460.8,3460.7,2.4085]
[1754211935206,2.961,3460.8,3460.7,2.936]
[1754211935407,3.3323,3460.8,3460.7,2.936]
[1754211935603,1.8547,3461.0,3460.9,1.3164]
[1754211935910,6.6241605,3461.0,3460.9,22.685]
[1754211936108,1.8547,3461.0,3460.9,22.685]
[1754211936309,3.3323,3461.0,3460.9,22.685]
[1754211936904,3.3323,3461.0,3460.9,21.9615]
[1754211939504,3.3323,3461.0,3460.9,22.685]
[1754211940310,1.3306,3461.1,3461.0,2.61782]
[1754211940505,6.1000605,3461.1,3461.0,23.26092]
[1754211940711,3.3323,3461.1,3461.0,23.26092]
[1754211941516,3.3323,3461.1,3461.0,22.53742]
[1754211944216,3.3323,3461.1,3461.0,23.26092]
[1754211945917,3.3323,3461.1,3461.0,22.53742]
[1754211947519,8.1017605,3461.1,3461.0,22.53742]
[1754211950825,8.1017605,3461.1,3461.0,23.26092]
[1754211954226,8.1017605,3461.1,3461.0,22.53742]
[1754211958024,8.1017605,3461.1,3460.8,2.59595422]
[1754211958330,3.3323,3460.8,3460.7,2.59595422]
[1754211958539,8.1017605,3460.8,3460.7,19.74]
[1754211958932,6.1000605,3460.8,3460.7,19.74]
[1754211959236,2.8082,3460.8,3460.7,22.676]
[1754211959432,5.261,3461.9,3460.7,22.676]
[1754211959433,1.3306,3461.1,3461.0,1.89432]
[1754211959632,6.6241605,3461.1,3461.0,23.25392]
[1754211960132,8.1017605,3461.1,3461.0,23.25392]
[1754211963729,8.1017605,3461.1,3461.0,22.53042]
[1754211965637,6.8233605,3461.1,3460.9,3.17388422]
[1754211965837,6.1000605,3461.1,3461.0,19.739]
[1754211966136,6.0922605,3461.0,3460.8,3.12055422]
[1754211966439,3.3147,3461.0,3460.9,19.738]
[1754211966939,8.0841605,3461.0,3460.9,19.738]
[1754211968438,8.0841605,3461.0,3460.9,20.2626]
[1754211968937,8.0841605,3461.0,3460.9,20.6251]
[1754211969141,7.5636605,3461.0,3460.9,22.6542]
[1754211969346,8.0841605,3461.0,3460.9,22.6542]
[1754211970237,1.4714,3461.0,3460.9,25.25015422]
[1754211970436,1.4714,3461.0,3460.9,22.6542]
[1754211970942,2.9619,3461.0,3460.9,22.6542]
[1754211971240,3.3147,3461.0,3460.9,22.6542]
[1754212000961,3.3147,3461.0,3460.9,21.9568]
[1754212001458,8.0841605,3461.0,3460.9,20.2304]
[1754212001960,3.2363,3460.9,3460.8,0.57795]
[1754212002162,3.2363,3460.9,3460.8,20.30595]
[1754212002355,3.2363,3460.9,3460.8,0.57795]
[1754212002652,3.2363,3460.9,3460.6,3.60559958]
[1754212002653,3.2363,3460.7,3460.6,6.78367386]
[1754212002859,8.0057605,3460.7,3460.6,22.90607428]
[1754212003056,8.0057605,3460.7,3460.6,3.17807428]
[1754212003258,8.0057605,3460.7,3460.6,20.30598]
[1754212003960,8.0057605,3460.7,3460.6,20.80568]
[1754212004361,8.0057605,3460.7,3460.6,1.07768]
[1754212004562,8.0057605,3460.7,3460.6,20.30698]
[1754212005361,8.0057605,3460.7,3460.6,20.30598]
[1754212005961,8.0057605,3460.7,3460.6,20.80568]
[1754212008560,9.2896605,3460.7,3460.5,0.578]
[1754212008767,1.3124,3460.1,3459.9,3.2078]
[1754212008961,3.2363,3460.1,3460.0,20.2267]
[1754212009165,3.2363,3460.1,3460.0,21.0433]
[1754212009369,3.2363,3460.1,3460.0,21.838]
[1754212009562,3.2363,3460.1,3460.0,22.41609]
[1754212009957,2.0055,3460.1,3459.9,3.7859]
[1754212010170,3.2363,3460.0,3459.9,0.5781]
[1754212010467,3.2363,3460.0,3459.9,22.4171]
[1754212011163,3.2078,3460.3,3459.9,22.4171]
[1754212011370,11.2135605,3460.3,3460.2,3.41066]
[1754212011566,6.4441,3460.3,3460.2,23.13766]
[1754212011868,8.0057605,3460.3,3460.2,23.13766]
[1754212012265,8.0057605,3460.3,3460.2,22.41606]
[1754212012765,8.0057605,3460.3,3460.2,23.13766]
[1754212022477,3.2363,3460.3,3460.2,23.13766]
[1754212022677,8.0057605,3460.3,3460.2,23.13766]
[1754212023373,8.0057605,3460.3,3460.2,20.30506]
[1754212023677,8.0057605,3460.3,3460.2,20.30406]
[1754212023982,8.0057605,3460.3,3460.2,19.726]
[1754212025268,0.679,3460.7,3460.3,1.06354]
[1754212025473,0.8142,3459.9,3459.8,5.1753]
[1754212025672,3.142,3459.9,3459.8,3.2078]
[1754212025873,3.142,3459.8,3459.6,45.79074958]
[1754212026079,7.9114605,3459.7,3459.6,41.607]
[1754212026281,7.9114605,3459.7,3459.6,20.2095]
[1754212026581,7.9114605,3459.7,3459.6,20.686]
[1754212027183,7.9114605,3459.7,3459.6,2.0935]
[1754212027381,7.9114605,3459.7,3459.6,21.8175]
[1754212028679,0.679,3459.4,3459.1,3.60559958]
[1754212028883,1.2734,3459.5,3459.4,1.05468]
[1754212029084,3.142,3459.5,3459.4,1.54018]
[1754212029285,7.9114605,3459.5,3459.4,1.54018]
[1754212030780,7.9114605,3459.5,3459.4,0.962]
[1754212030987,7.9114605,3459.5,3459.4,20.686]
[1754212031175,7.9114605,3459.5,3459.0,3.2078]
[1754212031176,1.2734,3459.3,3459.1,0.57823]
[1754212031375,1.8686,3458.8,3458.6,6.81339958]
[1754212031579,7.9114605,3458.7,3458.6,23.33059958]
[1754212031778,7.9114605,3458.7,3458.6,19.725]
[1754212034083,6.0428605,3458.7,3458.5,0.57834]
[1754212034288,3.142,3458.4,3458.3,1.88186]
[1754212034491,7.9114605,3458.4,3458.3,21.92046]
[1754212035101,7.9114605,3458.4,3458.3,22.39786]
[1754212035502,7.9114605,3458.4,3458.3,23.06996]
[1754212037798,7.9114605,3458.4,3458.3,22.39786]
[1754212039114,7.9114605,3458.4,3458.3,23.06996]
[1754212039407,7.9114605,3458.4,3458.3,23.07096]
[1754212044306,7.9114605,3458.4,3458.3,1.7809]
[1754212044514,7.9114605,3458.4,3458.3,19.728]
[1754212046014,7.9114605,3458.4,3458.3,21.8215]
[1754212046416,7.9114605,3458.4,3458.3,22.4936]
[1754212047717,7.9114605,3458.4,3458.3,19.728]
[1754212048313,7.9114605,3458.4,3458.1,1.06389]
[1754212048520,3.142,3458.2,3458.1,0.57839]
[1754212048821,3.142,3458.2,3458.1,21.26739]
[1754212049016,3.142,3458.2,3458.1,21.92149]
[1754212049520,3.142,3458.2,3458.1,21.92249]
[1754212050220,3.142,3458.2,3458.1,2.19449]
[1754212050426,3.142,3458.2,3458.1,22.39889]
[1754212050923,3.142,3458.2,3458.1,23.07099]
[1754212051621,4.9992,3458.7,3458.6,0.57833]
[1754212051816,4.9992,3458.7,3458.6,2.11923]
[1754212052015,9.7686605,3458.7,3458.6,2.11923]
[1754212052316,11.1833605,3458.7,3458.6,1.83193]
[1754212053124,11.1833605,3458.7,3458.6,1.2536]
[1754212053319,11.1833605,3458.7,3458.6,0.9063]
[1754212054218,11.1833605,3458.7,3458.6,1.1936]
[1754212054623,11.1833605,3458.7,3458.6,0.9063]
[1754212062526,11.1833605,3458.7,3458.6,0.4665]
[1754212062729,11.1833605,3458.7,3457.9,1.44608]
[1754212062730,3.2061,3458.4,3458.3,0.57837]
[1754212063031,7.9755605,3458.4,3458.3,20.30237]
[1754212063235,3.2061,3458.4,3458.3,20.76887]
[1754212063436,3.2061,3458.4,3458.3,21.20867]
[1754212063734,3.2061,3458.4,3458.3,0.9063]
[1754212063933,3.2061,3458.4,3458.3,20.6303]
[1754212065332,7.9755605,3458.4,3458.3,20.6303]
[1754212065631,7.9755605,3458.4,3458.3,19.724]
[1754212066041,3.2061,3458.3,3458.2,0.57839]
[1754212066338,7.9755605,3458.3,3458.2,21.20769]
[1754212066536,7.9755605,3458.3,3458.2,21.84229]
[1754212066928,1.2806,3457.9,3457.8,29.11535958]
[1754212067133,7.9755605,3457.9,3457.8,25.50976]
[1754212067329,7.9755605,3457.9,3457.8,24.9313]
[1754212067632,7.9755605,3457.9,3457.8,21.4362]
[1754212067833,7.9755605,3457.9,3457.8,21.7235]
[1754212069038,7.9755605,3457.9,3457.8,22.4465]
[1754212072944,7.9755605,3457.9,3457.8,19.723]
[1754212073242,7.9755605,3457.9,3457.8,20.618]
[1754212073441,7.9755605,3457.9,3457.8,21.4009]
[1754212073641,7.9755605,3457.9,3457.8,21.6731]
[1754212074144,7.9755605,3457.9,3457.8,22.3961]
[1754212076245,4.7694605,3457.9,3457.8,21.6731]
[1754212076454,6.1841605,3457.9,3457.8,22.3961]
[1754212076748,7.9755605,3457.9,3457.8,22.3961]
[1754212079454,3.2078,3458.3,3457.9,1.03364]
[1754212079651,6.4139,3458.3,3458.2,1.9501]
[1754212079849,5.2378605,3458.0,3457.9,1.9501]
[1754212080055,6.0500605,3458.0,3457.9,2.6731]
[1754212080557,7.9755605,3458.0,3457.9,2.6731]
[1754212080854,1.4147,3458.5,3457.9,0.723]
[1754212081157,1.2806,3458.5,3458.4,2.6731]
[1754212081560,7.9755605,3458.5,3458.4,2.6731]
[1754212081859,7.9755605,3458.5,3458.4,1.9501]
[1754212083658,7.9755605,3458.5,3458.4,2.6525]
[1754212084950,7.9755605,3458.5,3457.8,3.2078]
[1754212085159,8.4688,3458.7,3457.9,21.77994]
[1754212085160,3.0982,3458.0,3457.9,21.77994]
[1754212085550,3.0982,3458.0,3457.9,22.93014]
[1754212087060,2.6104,3458.0,3457.9,22.93014]
[1754212087965,1.3506,3458.0,3457.9,22.93014]
[1754212088662,10.9132,3458.7,3458.6,1.47752]
[1754212088871,10.9132,3458.7,3458.6,0.8992]
[1754212089065,16.3364605,3458.7,3458.4,0.84065]
[1754212089267,7.2138605,3458.5,3458.4,1.73985]
[1754212089566,7.8676605,3458.5,3458.4,1.73985]
[1754212090263,7.8676605,3458.5,3458.4,2.08595]
[1754212090970,7.8676605,3458.5,3458.4,2.50565]
[1754212091861,3.2078,3458.7,3458.4,1.79555]
[1754212092164,4.5584,3458.7,3458.6,3.20803]
[1754212092362,5.9673,3458.7,3458.6,3.20803]
[1754212092567,6.306,3458.7,3458.6,3.20803]
[1754212094861,3.0982,3458.7,3458.6,3.20803]
[1754212099369,3.2078,3459.1,3459.0,0.57826]
[1754212099573,6.306,3459.1,3459.0,0.57826]
[1754212099769,11.0754605,3459.1,3459.0,0.57826]
[1754212100170,11.0754605,3459.1,3459.0,1.02606]
[1754212102571,11.0754605,3459.1,3459.0,2.08586]
[1754212104682,11.0754605,3459.1,3459.0,0.57826]
[1754212105381,11.0754605,3459.1,3459.0,1.47746]
[1754212106387,11.0754605,3459.1,3459.0,2.08586]
[1754212106878,11.0754605,3459.1,3459.0,0.57826]
[1754212108186,9.2370605,3459.1,3458.9,0.57827]
[1754212108386,7.8676605,3458.9,3458.8,0.57828]
[1754212108774,3.0982,3458.8,3458.7,0.5783]
[1754212109286,7.8676605,3458.8,3458.7,1.4775]
[1754212110086,7.8676605,3458.8,3458.7,1.8236]
[1754212110380,7.8676605,3458.8,3458.7,2.0859]
[1754212111186,7.8676605,3458.8,3458.7,1.2453]
[1754212111388,6.0292605,3458.8,3458.6,1.02612]
[1754212111690,7.8676605,3458.7,3458.6,1.02612]
[1754212112477,7.8676605,3458.7,3458.5,0.57833]
[1754212112478,1.8311,3458.6,3458.5,0.57833]
[1754212112683,5.9752605,3458.6,3458.3,19.715]
[1754212112979,7.8063605,3457.8,3457.7,3.60559958]
[1754212113184,6.8174605,3457.2,3456.9,1.04138041]
[1754212113387,0.0543,3457.6,3457.5,0.4523]
[1754212113587,4.8577605,3457.6,3457.5,3.0247]
[1754212113892,4.8577605,3457.6,3457.5,1.2838]
[1754212114284,4.8577605,3457.6,3457.5,0.6325]
[1754212115286,4.8577605,3457.6,3457.5,1.2838]
[1754212116492,4.8577605,3457.6,3457.5,3.0247]
[1754212118090,4.8577605,3457.6,3457.5,2.5249]
[1754212118296,4.8577605,3457.6,3457.5,3.0247]
[1754212118688,4.8577605,3457.6,3457.5,2.5249]
[1754212119390,4.8577605,3457.6,3457.4,0.57852]
[1754212119698,4.8577605,3457.5,3457.4,0.57852]
[1754212120391,4.8577605,3457.5,3457.4,1.66332]
[1754212120596,4.7694605,3457.5,3457.4,3.60322]
[1754212123797,4.8034605,3457.5,3457.4,3.60322]
[1754212124185,4.7694605,3457.5,3457.4,0.57852]
[1754212124391,4.8577605,3457.5,3457.4,1.21102]
[1754212124787,4.8577605,3457.5,3457.2,0.57855]
[1754212125001,4.8577605,3457.3,3457.2,1.21105]
[1754212125410,0.0883,3457.3,3457.2,1.86235]
[1754212126000,4.7694605,3457.3,3456.9,1.04138041]
[1754212126299,3.2621,3457.3,3457.2,2.2359]
[1754212126500,3.2621,3457.3,3457.2,1.7361]
[1754212126693,3.2621,3457.3,3457.0,1.2838]
[1754212126694,0.034,3457.2,3457.0,1.2838]
[1754212126998,4.8577605,3457.1,3457.0,1.2838]
[1754212127700,4.8577605,3457.1,3457.0,2.2359]
[1754212127901,4.8577605,3457.1,3457.0,3.0247]
[1754212128499,4.7694605,3457.1,3457.0,3.0247]
[1754212128894,4.8034605,3457.1,3457.0,3.0247]
[1754212129097,4.8577605,3457.1,3457.0,3.0247]
[1754212132001,4.8577605,3457.1,3457.0,0.6325]
[1754212132697,0.0883,3457.0,3456.9,1e-08]
[1754212132902,4.8577605,3457.0,3456.9,1e-08]
[1754212135298,24.5797605,3457.0,3456.9,1e-08]
[1754212136605,24.5797605,3457.0,3456.9,0.63250001]
[1754212140197,24.9303605,3457.0,3456.9,0.63250001]
[1754212140906,24.8532605,3457.0,3456.9,1.28380001]
[1754212141107,24.7145605,3457.0,3456.9,3.02470001]
[1754212141406,24.9302605,3457.0,3456.9,3.02470001]
[1754212142302,25.0064605,3457.0,3456.9,2.52490001]
[1754212142499,20.237,3457.0,3456.9,1.73610001]
[1754212142698,25.0064605,3457.0,3456.9,1.73610001]
[1754212143107,24.9302605,3457.0,3456.9,1.73610001]
[1754212143310,24.9302605,3457.0,3456.9,2.26100001]
[1754212143704,24.9302605,3457.0,3456.9,2.75000001]
[1754212143705,24.9322605,3457.0,3456.9,2.75000001]
[1754212144108,24.9322605,3457.0,3456.9,3.08320001]
[1754212144308,5.2082605,3457.0,3456.9,3.08320001]
[1754212144513,24.9322605,3457.0,3456.9,3.08320001]
[1754212145107,5.2082605,3457.0,3456.9,3.08320001]
[1754212145308,24.9322605,3457.0,3456.9,3.08320001]
[1754212146309,5.2082605,3457.0,3456.9,3.08320001]
[1754212146613,24.9322605,3457.0,3456.9,3.08320001]
[1754212147210,30.1932605,3457.0,3456.9,3.08320001]
[1754212151217,30.2694605,3457.0,3456.9,3.08320001]
[1754212151714,30.1932605,3457.0,3456.9,3.08320001]
[1754212156418,30.0244605,3457.0,3456.9,1e-08]
[1754212156614,30.1006605,3457.0,3456.9,0.71520001]
[1754212156820,30.1006605,3457.0,3456.9,1.44520001]
[1754212157021,30.8464505,3457.0,3456.9,1.44520001]
[1754212157221,30.8464505,3457.0,3456.9,1.97010001]
[1754212157722,30.1916605,3457.0,3456.9,2.43370001]
[1754212157924,30.1916605,3457.0,3456.9,3.25590001]
[1754212158919,30.2678605,3457.0,3456.9,2.73100001]
[1754212159816,30.2678605,3457.0,3456.9,3.25590001]
[1754212160510,30.1916605,3457.0,3456.9,3.25590001]
[1754212161219,31.03522084,3457.0,3456.9,3.25590001]
[1754212162319,31.2679761,3457.0,3456.9,3.25590001]
[1754212164020,31.2679761,3457.0,3456.9,1e-08]
[1754212164226,31.1769761,3457.0,3456.9,1e-08]
[1754212164523,31.1769761,3457.0,3456.9,1.44520001]
[1754212164821,31.3441761,3457.0,3456.9,1.44520001]
[1754212165021,31.1578761,3457.0,3456.9,1e-08]
[1754212165226,31.1769761,3457.0,3456.9,1e-08]
[1754212165427,31.1007761,3457.0,3456.9,1e-08]
[1754212165825,31.1007761,3457.0,3456.7,1.2401]
[1754212165826,0.9353,3456.8,3456.7,0.9885]
[1754212166120,29.4470605,3456.8,3456.7,1.3217]
[1754212166326,31.0239519,3456.8,3456.7,1.3217]
[1754212166723,29.9972519,3456.8,3456.0,0.57876]
[1754212166919,4.8756,3456.3,3456.2,1.8107]
[1754212167127,25.4101,3456.3,3456.2,1.8107]
[1754212167427,24.69,3456.3,3456.2,1.8107]
[1754212167925,24.69,3456.3,3456.2,3.2559]
[1754212174327,3.2078,3456.7,3456.6,0.92974]
[1754212174533,27.7002605,3456.7,3456.6,3.81994]
[1754212174734,22.9308,3456.7,3456.6,3.81994]
[1754212177633,23.4492,3456.7,3456.6,3.81994]
[1754212179633,23.4492,3456.7,3455.8,1.44698]
[1754212179634,27.7002605,3456.7,3456.5,0.57867]
[1754212179837,2.4947,3456.6,3456.5,1.87677]
[1754212180133,26.9861605,3456.6,3456.5,1.2981]
[1754212180332,26.9861605,3456.6,3456.5,3.2413]
[1754212182034,26.9805605,3456.6,3456.5,3.2413]
[1754212182332,27.6703605,3456.6,3456.5,3.2413]
[1754212185232,26.9861605,3456.6,3456.5,3.2413]
[1754212185431,26.2953605,3456.6,3456.5,3.81998]
[1754212185737,26.9851605,3456.6,3456.5,3.81998]
[1754212186334,7.2641605,3456.6,3456.5,3.2413]
[1754212186526,26.9851605,3456.6,3456.5,3.2413]
[1754212186835,3.1789,3456.5,3456.4,3.2413]
[1754212187032,7.9483605,3456.5,3456.4,3.2413]
[1754212187232,3.1789,3456.5,3456.4,3.2413]
[1754212187632,22.8999,3456.5,3456.4,3.2413]
[1754212187830,3.1789,3456.5,3456.4,3.2413]
[1754212188030,22.2157,3456.5,3456.4,3.2413]
[1754212189138,2.4947,3456.5,3456.4,3.2413]
[1754212189334,22.2157,3456.5,3456.4,3.2413]
[1754212189539,22.2147,3456.5,3456.4,3.2413]
[1754212191942,1.2865,3455.9,3455.8,1.2981]
[1754212192239,25.4225,3455.9,3455.8,1.2981]
[1754212192641,25.4225,3455.9,3455.8,3.2413]
[1754212193138,30.8761605,3455.9,3455.8,0.7348]
[1754212193336,30.8761605,3455.9,3455.8,3.2413]
[1754212193732,23.4019,3455.9,3455.8,3.2413]
[1754212193941,22.9278,3455.9,3455.8,3.2413]
[1754212195145,22.3754,3455.9,3455.8,3.2413]
[1754212196441,19.72,3455.9,3455.8,3.2413]
[1754212196943,3.2078,3456.4,3456.3,3.2413]
[1754212197146,22.9288,3456.4,3456.3,3.2413]
[1754212197741,26.1077,3456.4,3456.3,3.2413]
[1754212198335,30.8771605,3456.4,3456.3,3.2413]
[1754212198536,30.8771605,3456.4,3456.3,1.2203]
[1754212198741,1.338,3455.9,3455.8,2.7404]
[1754212199045,25.4235,3455.9,3455.8,2.7404]
[1754212199244,26.1077,3455.9,3455.8,3.2413]
[1754212199553,30.8771605,3455.9,3455.8,3.2413]
[1754212199855,30.8771605,3455.9,3455.8,2.7404]
[1754212200346,0.8639,3455.4,3455.3,1.87697]
[1754212200847,0.8639,3455.4,3455.3,3.82017]
[1754212201057,2.4947,3455.4,3455.3,3.2413]
[1754212201943,3.2078,3455.9,3455.8,0.57879]
[1754212202146,4.7694605,3456.2,3456.1,0.57874]
[1754212202352,24.4994605,3456.2,3456.1,3.73624]
[1754212202646,25.3387028,3456.2,3456.1,3.73624]
[1754212202843,5.6087028,3456.2,3456.1,3.73624]
[1754212203040,0.8392423,3456.2,3456.1,3.73624]
[1754212203239,22.9368,3456.3,3456.2,1.8254]
[1754212203440,23.77580555,3456.3,3456.2,3.1575]
[1754212203853,22.9368,3456.3,3456.2,3.1575]
[1754212204147,3.2078,3456.3,3456.2,3.1575]
[1754212205243,19.732,3456.7,3456.6,1.301]
[1754212205454,19.732,3456.7,3456.6,3.1575]
[1754212206745,3.2078,3456.8,3456.7,3.73614]
[1754212208344,19.733,3457.1,3457.0,0.57859]
[1754212208650,20.6198,3457.1,3457.0,3.73609]
[1754212209650,21.8243,3457.1,3457.0,3.1575]
[1754212209856,22.3115,3457.1,3457.0,3.1575]
[1754212210547,23.0071,3457.1,3457.0,0.6635]
[1754212210752,23.0071,3457.1,3457.0,3.1575]
[1754212210947,3.2741,3457.1,3457.0,3.1575]
[1754212211153,23.0011,3457.1,3457.0,3.1575]
[1754212212352,23.0011,3457.1,3457.0,0.6635]
[1754212212554,2.5785,3456.6,3456.5,2.6331]
[1754212212847,20.5576,3456.6,3456.5,3.1575]
[1754212213057,20.0709,3456.6,3456.5,3.1575]
[1754212213242,20.0709,3456.6,3456.0,4.65467]
[1754212213243,5.7863,3457.0,3456.9,3.1575]
[1754212213447,29.5749605,3457.0,3456.9,3.1575]
[1754212213650,24.8055,3457.0,3456.9,3.1575]
[1754212214349,25.5233,3457.0,3456.9,3.1575]
[1754212215452,25.5273,3457.0,3456.9,3.1575]
[1754212215652,26.2229,3457.0,3456.9,3.1575]
[1754212216255,26.2209,3457.0,3456.9,3.1575]
[1754212216852,5.7863,3457.0,3456.9,3.1575]
[1754212217049,3.2078,3457.0,3456.9,3.1575]
[1754212217250,22.9498,3457.4,3457.3,3.1575]
[1754212217555,22.9498,3457.4,3457.3,3.73604]
[1754212218359,3.2078,3457.4,3457.3,3.73604]
[1754212226766,2.0913,3457.6,3457.5,1.87951]
[1754212226959,2.0913,3457.6,3457.5,3.73601]
[1754212228371,2.0913,3457.6,3457.5,3.1575]